Workbook

Sheet Menu

Sheet Controle Animal
A1: ="Consulta - " &C3 -> Consulta - Lote A | N1: Configurações:
A2: =TODAY() -> 2020-12-17 | C2: Lote | N2: Lote A
A3: Selecione o Lote: | C3: Lote A | N3: Lote B
A4: Após seleção, clique em atualizar. | H4: LEGENDA | N4: Lote C
A5: Para nova consulta, limpe o filtro. | H5: Celulás em azul claro liberado prenchimento! | N5: Pós-Parto
A7: ID/BRINCO | B7: NOME | C7: DATA PARTO | D7: LITRO/DIA | E7: Nº DO PARTO | F7: LOTE | G7: DEL | H7: Situação
A8: 6 | B8: Lareira | C8: 2020-05-22 | D8: 56 | E8: 5 | F8: Lote A | G8: =A2-C8 -> 209 | H8: Prenha
A9: 26 | B9: Gorila | C9: 2020-02-22 | D9: 10 | E9: 3 | F9: Lote A | G9: =A2-C9 -> 299 | H9: Prenha
A10: 27 | B10: Brahma | C10: 2020-01-23 | D10: 25 | E10: 4 | F10: Lote A | G10: =A2-C10 -> 329 | H10: Prenha
A11: 7 | B11: Escala | C11: 2020-04-05 | D11: 31 | E11: 2 | F11: Lote A | G11: =A2-C11 -> 256 | H11: Vazia
A12: 5 | B12: Patrulha | C12: 2019-12-28 | D12: 24 | E12: 4 | F12: Lote A | G12: =A2-C12 -> 355 | H12: Prenha
A13: 28 | B13: Skol | C13: 2020-08-06 | D13: 48 | E13: 1 | F13: Lote A | G13: =A2-C13 -> 133 | H13: Prenha
A14: 13 | B14: Oferta | C14: 2020-05-29 | D14: 41 | E14: 4 | F14: Lote A | G14: =A2-C14 -> 202 | H14: Vazia
A15: 3 | B15: Feiticeira | C15: 2020-07-23 | D15: 19 | E15: 2 | F15: Lote A | G15: =A2-C15 -> 147 | H15: Inseminada
A16: 29 | B16: Natércia | C16: 2020-07-27 | D16: 36 | E16: 1 | F16: Lote A | G16: =A2-C16 -> 143 | H16: Prenha
A17: 18 | B17: Lorena | C17: 2020-05-05 | D17: 24.2 | E17: 4 | F17: Lote B | G17: =A2-C17 -> 226 | H17: Inseminada
A18: 14 | B18: Surpresa | C18: 2020-04-19 | D18: 24 | E18: 4 | F18: Lote B | G18: =A2-C18 -> 242 | H18: Inseminada
A19: 19 | B19: Evidência | C19: 2020-06-03 | D19: 23.6 | E19: 5 | F19: Lote B | G19: =A2-C19 -> 197 | H19: Inseminada
A20: 2 | B20: Nectárina | C20: 2020-08-25 | D20: 23 | E20: 4 | F20: Lote B | G20: =A2-C20 -> 114 | H20: Prenha
A21: 10 | B21: Pintura | C21: 2020-03-12 | D21: 23 | E21: 3 | F21: Lote B | G21: =A2-C21 -> 280 | H21: Prenha
A22: 16 | B22: Itatiba | C22: 2020-03-17 | D22: 23 | E22: 3 | F22: Lote B | G22: =A2-C22 -> 275 | H22: Prenha
A23: 20 | B23: Paula | C23: 2020-08-08 | D23: 22 | E23: 1 | F23: Lote B | G23: =A2-C23 -> 131 | H23: Prenha
A24: 17 | B24: Predileta | C24: 2020-04-20 | D24: 21.5 | E24: 4 | F24: Lote B | G24: =A2-C24 -> 241 | H24: Inseminada
A25: 15 | B25: Floresta | C25: 2020-02-13 | D25: 20.9 | E25: 2 | F25: Lote B | G25: =A2-C25 -> 308 | H25: Inseminada
A26: 11 | B26: Revista | C26: 2020-03-14 | D26: 20.2 | E26: 7 | F26: Lote B | G26: =A2-C26 -> 278 | H26: Vazia
A27: 8 | B27: Mancha | C27: 2020-02-16 | D27: 20 | E27: 1 | F27: Lote B | G27: =A2-C27 -> 305 | H27: Vazia
A28: 12 | B28: Caravela | C28: 2020-04-16 | D28: 19.5 | E28: 2 | F28: Lote C | G28: =A2-C28 -> 245 | H28: Vazia
A29: 9 | B29: Caravana | C29: 2020-02-23 | D29: 19 | E29: 1 | F29: Lote C | G29: =A2-C29 -> 298 | H29: Prenha
A30: 22 | B30: Paródia | C30: 2020-08-14 | D30: 18 | E30: 3 | F30: Lote C | G30: =A2-C30 -> 125 | H30: Inseminada
A31: 25 | B31: Autrália | C31: 2020-03-21 | D31: 16.8 | E31: 2 | F31: Lote C | G31: =A2-C31 -> 271 | H31: Prenha
A32: 24 | B32: Dinamarca | C32: 2020-05-24 | D32: 13 | E32: 5 | F32: Lote C | G32: =A2-C32 -> 207 | H32: Prenha
A33: 23 | B33: Heliodora | C33: 2020-03-23 | D33: 12.7 | E33: 2 | F33: Lote C | G33: =A2-C33 -> 269 | H33: Inseminada
A34: 4 | B34: Salomé | C34: 2020-05-15 | D34: 12 | E34: 3 | F34: Pós-parto | G34: =A2-C34 -> 216 | H34: Prenha
A35: 21 | B35: Baleia | C35: 2020-08-09 | D35: 8 | E35: 1 | F35: Lote B | G35: =A2-C35 -> 130 | H35: Prenha
A36: 1 | B36: Serenata | C36: 2020-08-27 | D36: 5 | E36: 3 | F36: Lote B | G36: =A2-C36 -> 112 | H36: Prenha
G37: =A2-C37 -> 44182
G38: =A2-C38 -> 44182
G39: =
G40: =
G41: =
G42: =
G43: =
G44: =
G45: =
G46: =
G47: =
G48: =
G49: =
G50: =
G51: =
G52: =
G53: =
G54: =
G55: =
G56: =
G57: =
G58: =
G59: =
G60: =
G61: =
G62: =
G63: =
G64: =
G65: =
G66: =
G67: =
G68: =
G69: =
G70: =
G71: =
G72: =
G73: =
G74: =
G75: =
G76: =
G77: =
G78: =
G79: =
G80: =
G81: =

Sheet Alimentação
A1: DADOS DOS LOTES | V1: ANÁLISE GERAL
A2: Dados - Lote A | F2: Dados - Lote B | K2: Dados - Lote C | P2: Dados - Pós Parto | V2: Produção TOTAL | Z2: ANÁLISE DE CUSTO DIÁRIO | AD2: ANÁLISE DE CUSTO MENSAL | AI2: Custo Alimentar
A4: Média de produção (L) | D4: =AVERAGE('Controle Animal'!D8:D16) -> 32.22222222 | F4: Média de produção (L) | I4: =AVERAGE('Controle Animal'!D17:D36) -> 18.47 | K4: Média de produção (L) | N4: =AVERAGE('Controle Animal'!D28:D33) -> 16.5 | P4: Média de produção (L) | S4: =AVERAGE('Controle Animal'!D34) -> 12 | V4: Nº Lactantes: | X4: =COUNT('Controle Animal'!A8:A200) -> 29 | Z4: Quantidade gasta de Volumoso (kg/dia) | AA4: =F24 -> 720 | AD4: Quantidade gasta de Volumoso kg/mês | AF4: =AA4*30 -> 21600
AI5: Produção por mês (L) | AJ5: =X10 -> 18873.3
A6: Produção total (L/dia) | D6: =COUNT('Controle Animal'!E8,'Controle Animal'!E9,'Controle Animal'!E10,'Controle Animal'!E11,'Controle Animal'!E12,'Controle Animal'!E13,'Controle Animal'!E14,'Controle Animal'!E15,'Controle Animal'!E16)*D4 -> 290 | F6: Produção total (L/dia) | I6: =COUNT('Controle Animal'!D17,'Controle Animal'!D18,'Controle Animal'!D19,'Controle Animal'!D20,'Controle Animal'!D21,'Controle Animal'!D22,'Controle Animal'!D23,'Controle Animal'!D24,'Controle Animal'!D25,'Controle Animal'!D26,'Controle Animal'!D27,'Controle Animal'!D35,'Controle Animal'!D36)*I4 -> 240.11 | K6: Produção total (L/dia) | N6: =COUNT('Controle Animal'!D28,'Controle Animal'!D29,'Controle Animal'!D30,'Controle Animal'!D31,'Controle Animal'!D32,'Controle Animal'!D33)*N4 -> 99 | P6: Produção total (L/dia) | S6: =COUNT('Controle Animal'!D34)*S4 -> 12 | V6: Média de produção (L) | X6: =AVERAGE('Controle Animal'!D8:D200) -> 22.73793103 | Z6: Despesa com Volumoso por dia (R$) | AA6: =AA4*Q32 -> 144 | AD6: Despesa com Volumoso (R$ por mês) | AF6: =AA6*30 -> 4320
AI7: Renda Bruta mensal(R$) | AJ7: =AJ5*X12 -> 36802.935
A8: Consumo (kg de matéria seca/dia) | D8: =(Q24*Q26/100)*COUNT('Controle Animal'!D8,'Controle Animal'!D9,'Controle Animal'!D10,'Controle Animal'!D11,'Controle Animal'!D12,'Controle Animal'!D13,'Controle Animal'!D14,'Controle Animal'!D15,'Controle Animal'!D16) -> 135 | F8: Consumo (kg de matéria seca/dia) | I8: =(Q24*Q26/100)*COUNT('Controle Animal'!D17,'Controle Animal'!D18,'Controle Animal'!D19,'Controle Animal'!D20,'Controle Animal'!D21,'Controle Animal'!D22,'Controle Animal'!D23,'Controle Animal'!D24,'Controle Animal'!D25,'Controle Animal'!D26,'Controle Animal'!D27,'Controle Animal'!D35,'Controle Animal'!D36) -> 195 | K8: Consumo (kg de matéria seca/dia) | N8: =(Q24*Q26/100)*COUNT('Controle Animal'!D28,'Controle Animal'!D29,'Controle Animal'!D30,'Controle Animal'!D31,'Controle Animal'!D32,'Controle Animal'!D33) -> 90 | P8: Consumo (kg de matéria seca/dia) | S8: =(Q24*Q26/100)*COUNT('Controle Animal'!D34) -> 15 | V8: Produção/dia (L) | X8: =D6+I6+N6 -> 629.11 | Z8: Quantidade gasta de Concentrado (kg/dia) | AA8: =F21 -> 186.6666667 | AD8: Quantidade gasta de Concentrado kg/mês | AF8: =AA8*30 -> 5600
A10: Consumo de alimento concentrado (kg/dia) | D10: =D8-D12 -> 54 | F10: Consumo de alimento concentrado (kg/dia) | I10: =I8-I12 -> 78 | K10: Consumo de alimento concentrado (kg/dia) | N10: =N8-N12 -> 36 | P10: Consumo de alimento concentrado (kg/dia) | S10: =S8-S12 -> 6 | V10: Produção/mês (L) | X10: =X8*30 -> 18873.3 | Z10: Despesa com Concentrado por dia (R$) | AA10: =AA8*Q31 -> 224 | AD10: Despesa com Concentrado por mês (R$) | AF10: =AA10*30 -> 6720 | AI10: Custo com alimentação mensal(R$) | AJ10: =AF12/AJ5 -> 0.5849533468
A12: Consumo de alimento volumoso(kg/dia) | D12: =D8*Alimentação!Q21/100 -> 81 | F12: Consumo de alimento volumoso(kg/dia) | I12: =I8*Q21/100 -> 117 | K12: Consumo de alimento volumoso(kg/dia) | N12: =N8*Q21/100 -> 54 | P12: Consumo de alimento volumoso(kg/dia) | S12: =S8*Q21/100 -> 9 | V12: Preço/litro (R$): | X12: 1.95 | AD12: Despesa/total/mês(R$): | AF12: =AF6+AF10 -> 11040
AI13: Custo com alimentação mensal(%) | AJ13: =(AJ10*100)/X12 -> 29.99760753
A14: Consumo total de matéria seca/mês | D14: =D8*30 -> 4050 | F14: Consumo total de matéria seca/mês | I14: =I8*30 -> 5850 | K14: Consumo total de matéria seca/mês | N14: =N8*30 -> 2700 | P14: Consumo total de matéria seca/mês | S14: =S8*30 -> 450 | V14: Ganho Mensal(R$): | X14: =X12*X10 -> 36802.935
A18: DADOS DA ALIMENTAÇÃO | V18: LEGENDA
A19: Consumo de matéia natural por dia (kg) | J19: Parâmetros do Rebanho
A21: Concentrado: | F21: =(D10+I10+N10)*100/Q28 -> 186.6666667 | J21: Relação Volumoso | Q21: 60
J22: Relação Concentrado | Q22: 40 | V22: Células em azul claro devem ser preenchidas!
A24: Volumoso: | F24: =(D12+I12+N12)*100/Q29 -> 720 | J24: Peso vivo médio do lote (kg): | Q24: 500
J26: Relação Matéria Seca(%) | Q26: 3
J27: Nº animais: | Q27: 29
J28: Matéria Seca/Concentrado(%) | Q28: 90
J29: Matéria Seca/Volumoso (%) | Q29: 35
J31: Custo Concentrado(R$): | Q31: 1.2
J32: Custo Volumoso (R$: | Q32: 0.2
